bitfinex/quotes_SOLUSD_20260308
["timestamp","ask_amount","ask_price","bid_price","bid_amount"]
[1773010125628,0.51354498,82.429,82.392,12.13710068]
[1773010125947,0.51354498,82.447,82.393,0.52067801]
[1773010126239,0.51354498,82.429,82.392,12.13710068]
[1773010126739,0.51354498,82.429,82.387,12.13781168]
[1773010126944,12.16099436,82.4,82.385,1e-08]
[1773010127128,42.47624364,82.399,82.385,1e-08]
[1773010128629,12.13546513,82.404,82.385,1e-08]
[1773010128832,12.16099436,82.4,82.385,1e-08]
[1773010129229,12.13606961,82.399,82.385,1e-08]
[1773010129638,42.47624364,82.399,82.385,1e-08]
[1773010130050,12.16099436,82.39,82.349,12.14332942]
[1773010130254,12.16099436,82.38,82.347,0.53439512]
[1773010130550,12.16099436,82.38,82.317,9.06565437]
[1773010130551,12.16099436,82.38,82.336,0.53439512]
[1773010131032,42.47624364,82.399,82.336,0.53439512]
[1773010131237,12.16099436,82.38,82.338,0.53439512]
[1773010132132,12.16099436,82.39,82.338,0.53439512]
[1773010132933,12.16099436,82.38,82.338,0.53439512]
[1773010133154,12.13714632,82.392,82.34,0.53439512]
[1773010133646,12.16099436,82.37,82.339,12.1449131]
[1773010134747,4.82477569,82.439,82.339,12.1449131]
[1773010134748,12.16099436,82.44,82.345,0.53439512]
[1773010134941,12.16099436,82.43,82.347,0.67655669]
[1773010135266,42.46078442,82.429,82.353,0.53439512]
[1773010135447,42.46078442,82.429,82.354,0.53439512]
[1773010135758,12.13165269,82.429,82.354,0.53439512]
[1773010136653,12.1301811,82.439,82.357,0.53439512]
[1773010137548,42.45563385,82.439,82.359,0.53439512]
[1773010139567,12.11225843,82.44,82.36,103.20543951]
[1773010139857,12.11225843,82.44,82.365,0.53439512]
[1773010140738,12.11225843,82.43,82.365,0.53439512]
[1773010141563,42.46078442,82.429,82.367,0.53439512]
[1773010142260,12.1301811,82.439,82.368,0.53439512]
[1773010143657,12.1301811,82.439,82.347,4.82477569]
[1773010143658,12.11225843,82.42,82.37,0.53439512]
[1773010144044,4.82477569,82.479,82.37,0.53439512]
[1773010144045,6.33405647,82.5,82.373,0.53439512]
[1773010144256,12.12135904,82.499,82.401,3.69383402]
[1773010144560,12.12135904,82.499,82.415,0.53439512]
[1773010145255,12.11225843,82.52,82.426,0.53439512]
[1773010145459,12.11225843,82.51,82.427,0.53439512]
[1773010146962,42.41961482,82.509,82.429,0.53439512]
[1773010147946,42.41961482,82.509,82.434,0.53439512]
[1773010148346,42.41961482,82.509,82.435,0.53439512]
[1773010149164,42.41961482,82.509,82.437,0.53439512]
[1773010149556,12.11988995,82.509,82.438,0.53439512]
[1773010150654,42.41961482,82.509,82.438,0.53439512]
[1773010150864,12.11225843,82.49,82.438,0.53439512]
[1773010151054,12.11225843,82.5,82.44,0.53439512]
[1773010152271,0.14216157,82.489,82.43,0.53439512]
[1773010152468,12.11225843,82.45,82.401,0.53439512]
[1773010152674,12.11225843,82.45,82.4,12.13592233]
[1773010152849,0.28432314,82.472,82.401,0.53439512]
[1773010153056,12.12723899,82.459,82.403,0.53439512]
[1773010154261,12.12532738,82.472,82.404,0.53439512]
[1773010154858,42.43864583,82.472,82.404,0.53439512]
[1773010155056,30.31331845,82.472,82.407,0.53439512]
[1773010156773,30.31331845,82.472,82.406,0.28432314]
[1773010156774,30.31331845,82.472,82.408,42.47160468]
[1773010156964,30.31331845,82.472,82.409,0.53439512]
[1773010157294,12.11225843,82.47,82.409,0.53439512]
[1773010158774,12.11225843,82.46,82.409,0.53439512]
[1773010158969,42.44533646,82.459,82.4,12.13592233]
[1773010159169,42.44533646,82.459,82.401,0.53439512]
[1773010159170,12.11225843,82.45,82.401,0.53439512]
[1773010160087,42.44533646,82.459,82.401,0.53439512]
[1773010160281,12.11225843,82.45,82.401,0.53439512]
[1773010160970,12.11225843,82.45,82.38,12.40205189]
[1773010160971,42.45048453,82.449,82.403,0.53439512]
[1773010161686,12.11225843,82.44,82.402,12.13562777]
[1773010162869,12.11225843,82.43,82.393,0.53439512]
[1773010163185,12.11225843,82.43,82.37,12.05200195]
[1773010163186,12.11225843,82.43,82.384,0.53439512]
[1773010163763,12.11225843,82.44,82.384,0.53439512]
[1773010165000,42.45563385,82.439,82.386,0.53439512]
[1773010166086,42.45563385,82.439,82.388,0.53439512]
[1773010167783,42.45563385,82.439,82.389,12.13754263]
[1773010168087,12.11225843,82.43,82.39,0.53439512]
[1773010169084,42.45563385,82.439,82.39,0.53439512]
[1773010169264,12.1301811,82.439,82.39,0.53439512]
[1773010169463,12.11225843,82.43,82.39,0.53439512]
[1773010169869,12.11225843,82.42,82.379,0.53439512]
[1773010170084,12.11225843,82.42,82.38,12.13886865]
[1773010170264,12.11225843,82.42,82.381,0.53439512]
[1773010172685,12.13312464,82.419,82.383,0.53439512]
[1773010172876,12.11225843,82.41,82.376,0.53439512]
[1773010173073,12.13312464,82.419,82.376,0.53439512]
[1773010173275,12.11225843,82.41,82.375,12.13960546]
[1773010173890,12.11225843,82.4,82.37,12.14022848]
[1773010174079,12.11225843,82.4,82.366,12.67531458]
[1773010174389,12.11225843,82.4,82.366,12.14091946]
[1773010174792,12.11225843,82.39,82.361,12.14162263]
[1773010174969,12.11225843,82.4,82.361,12.14162263]
[1773010175169,12.11225843,82.39,82.357,12.67662732]
[1773010175595,12.11225843,82.4,82.357,12.67662732]
[1773010175887,12.11225843,82.4,82.358,0.53439512]
[1773010176979,12.13606961,82.399,82.36,0.53439512]
[1773010177991,42.47624364,82.399,82.36,0.53439512]
[1773010178490,12.13606961,82.399,82.36,0.53439512]
[1773010178695,60.66562321,82.419,82.359,42.49687344]
[1773010178696,0.48803113,82.498,82.427,3.69383402]
[1773010178997,30.29716792,82.516,82.432,0.28432314]
[1773010178998,12.1216529,82.497,82.432,0.28432314]
[1773010179287,12.1216529,82.497,82.433,0.50550396]
[1773010179871,12.12018374,82.507,82.433,0.50550396]
[1773010180191,0.48803113,82.499,82.433,0.50550396]
[1773010180494,0.48803113,82.497,82.433,0.50550396]
[1773010180871,42.42629945,82.496,82.434,42.45820898]
[1773010181074,0.48803113,82.495,82.435,0.50550396]
[1773010181679,0.48803113,82.489,82.435,0.50550396]
[1773010181874,0.48803113,82.487,82.434,12.13091685]
[1773010182073,0.48803113,82.479,82.434,12.13091685]
[1773010182586,0.48803113,82.479,82.426,12.13201882]
[1773010183382,0.48803113,82.477,82.426,12.13201882]
[1773010184690,0.48803113,82.475,82.426,12.13201882]
[1773010184993,0.48803113,82.475,82.43,7.4]
[1773010185490,0.48803113,82.469,82.43,7.4]
[1773010185690,0.48803113,82.469,82.425,0.50550396]
[1773010186778,0.48803113,82.467,82.425,0.50550396]
[1773010187396,0.48803113,82.467,82.401,30.33920966]
[1773010187604,12.11225843,82.43,82.369,0.50550396]
[1773010187902,0.28432314,82.467,82.33,12.33737376]
[1773010187903,0.48803113,82.409,82.36,0.50550396]
[1773010188075,0.48803113,82.399,82.36,0.50550396]
[1773010188685,0.48803113,82.399,82.333,0.50550396]
[1773010188887,0.48803113,82.397,82.335,0.50550396]
[1773010189695,42.47675913,82.398,82.335,0.50550396]
[1773010189696,0.48803113,82.389,82.335,0.50550396]
[1773010189884,0.48803113,82.379,82.335,0.50550396]
[1773010190894,0.48803113,82.377,82.336,12.14535561]
[1773010191199,0.48803113,82.377,82.293,0.50550396]
[1773010191404,0.48803113,82.377,82.227,48.64534817]
[1773010191405,12.11225843,82.34,82.302,0.50550396]
[1773010191585,0.48803113,82.349,82.301,12.15052064]
[1773010191781,0.48803113,82.339,82.301,12.15052064]
[1773010191988,0.48803113,82.339,82.296,12.15115967]
[1773010192187,0.48803113,82.339,82.3,12.35057131]
[1773010192384,0.48803113,82.349,82.301,0.50550396]
[1773010193008,0.48803113,82.347,82.303,0.50550396]
[1773010194407,0.48803113,82.347,82.302,12.15037301]
[1773010194609,0.48803113,82.339,82.302,12.15037301]
[1773010194903,12.63309173,82.338,82.302,12.15037301]
[1773010195306,0.48803113,82.355,82.303,0.50550396]
[1773010195513,0.48803113,82.349,82.303,0.50550396]
[1773010196104,0.48803113,82.339,82.3,0.2]
[1773010197500,0.48803113,82.339,82.28,0.70550396]
[1773010197809,0.48803113,82.309,82.28,0.2]
[1773010198611,0.48803113,82.299,82.264,12.15597656]
[1773010199105,0.48803113,82.299,82.271,12.15495131]
[1773010199309,12.11225843,82.31,82.271,12.66045527]
[1773010199613,0.48803113,82.307,82.271,12.66045527]
[1773010199910,0.48803113,82.299,82.265,12.15581765]
[1773010200101,0.48803113,82.279,82.23,12.16096557]
[1773010200302,0.48803113,82.259,82.224,12.16186089]
[1773010200605,0.48803113,82.273,82.225,0.50550396]
[1773010200809,0.48803113,82.283,82.225,0.50550396]
[1773010201009,12.14948729,82.308,82.228,0.50550396]
[1773010201308,0.48803113,82.307,82.229,0.50550396]
[1773010201500,0.48803113,82.289,82.229,0.50550396]
[1773010201706,0.48803113,82.277,82.231,0.50550396]
[1773010202293,12.15912717,82.26,82.231,0.50550396]
[1773010202494,12.1539172,82.278,82.221,0.50550396]
[1773010202692,0.48803113,82.282,82.221,0.50550396]
[1773010202894,12.15236594,82.289,82.224,0.78668047]
[1773010203125,30.37709582,82.299,82.225,0.50235733]
[1773010203297,60.73495704,82.325,82.223,3.69383402]
[1773010203298,12.67468859,82.319,82.239,0.50235733]
[1773010203497,0.5268248,82.318,82.24,0.50235733]
[1773010203708,0.5268248,82.309,82.242,0.50235733]
[1773010204420,12.14727009,82.324,82.245,0.78668047]
[1773010204724,0.5268248,82.323,82.246,0.50235733]
[1773010204924,30.89101761,82.334,82.248,0.50235733]
[1773010205120,0.5268248,82.319,82.248,0.50235733]
[1773010205419,0.5268248,82.302,82.248,0.50235733]
[1773010205913,0.5268248,82.3,82.25,0.50235733]
[1773010206116,0.5268248,82.3,82.249,12.15820253]
[1773010206321,0.49646696,82.289,82.25,0.50808298]
[1773010206722,0.49646696,82.299,82.25,0.50808298]
[1773010207909,12.14933968,82.309,82.252,0.50808298]
[1773010208110,0.49646696,82.299,82.252,0.50808298]
[1773010208511,0.49646696,82.289,82.252,0.50808298]
[1773010209033,103.26938729,82.309,82.252,0.50808298]
[1773010209034,0.49646696,82.302,82.252,0.50808298]
[1773010209215,42.52268888,82.309,82.252,0.50808298]
[1773010209413,0.49646696,82.299,82.252,0.50808298]
[1773010210215,0.49646696,82.297,82.254,0.50808298]
[1773010211323,0.49646696,82.279,82.186,4.82477569]
[1773010211519,0.49646696,82.279,82.205,0.28432314]
[1773010211720,0.49646696,82.269,82.206,42.57596768]
[1773010212227,42.54388097,82.268,82.206,42.57596768]
[1773010212428,0.49646696,82.267,82.206,42.57596768]
[1773010212910,12.1465358,82.328,82.214,5.10909883]
[1773010213106,0.49646696,82.327,82.222,8.51860971]
[1773010213309,0.49646696,82.327,82.247,0.50808298]
[1773010213539,0.49646696,82.327,82.249,0.50808298]
[1773010213832,0.49646696,82.327,82.259,0.50808298]
[1773010214021,0.49646696,82.327,82.26,0.50808298]
[1773010214415,0.49646696,82.327,82.263,0.50808298]
[1773010215107,0.49646696,82.338,82.265,0.50808298]
[1773010215326,0.49646696,82.358,82.268,0.50808298]
[1773010215663,0.49646696,82.357,82.268,0.50808298]
[1773010215831,0.49646696,82.357,82.269,0.50808298]
[1773010216026,0.49646696,82.357,82.279,0.50808298]
[1773010216225,0.49646696,82.357,82.279,0.28432314]
[1773010216433,0.49646696,82.355,82.283,0.50808298]
[1773010217624,12.14240613,82.356,82.286,0.50808298]
[1773010217625,0.49646696,82.353,82.286,0.50808298]
[1773010218228,0.49646696,82.339,82.271,12.15495131]
[1773010218435,0.49646696,82.289,82.206,0.50808298]
[1773010218753,262.37250501,82.354,82.206,0.50808298]
[1773010218938,0.49646696,82.289,82.206,0.50808298]
[1773010219427,0.49646696,82.289,82.205,103.40003647]
[1773010219428,0.49646696,82.289,82.209,0.50808298]
[1773010219632,0.49646696,82.287,82.212,0.50808298]
[1773010220033,0.49646696,82.287,82.215,0.50808298]
[1773010220438,0.49646696,82.279,82.215,0.50808298]
[1773010220615,0.49646696,82.269,82.215,0.50808298]
[1773010221720,0.49646696,82.257,82.216,12.16308261]
[1773010221934,0.49646696,82.257,82.216,42.57078913]
[1773010222134,0.49646696,82.267,82.217,0.50808298]
[1773010223850,0.49646696,82.265,82.219,0.50808298]
[1773010226234,0.49646696,82.263,82.22,12.16249087]
[1773010226435,0.49646696,82.259,82.22,12.16249087]
[1773010229245,0.49646696,82.257,82.213,30.40864358]
[1773010229421,0.49646696,82.257,82.214,0.50808298]
[1773010230948,0.49646696,82.257,82.21,42.5738961]
[1773010231155,0.49646696,82.255,82.21,30.40992579]
[1773010231833,0.49646696,82.249,82.188,7.48749211]
[1773010232139,0.49646696,82.249,82.16,0.2]
[1773010232140,0.49646696,82.229,82.189,12.16707831]
[1773010232323,0.49646696,82.219,82.178,12.16870695]
[1773010232829,0.49646696,82.219,82.178,42.59047433]
[1773010233043,0.49646696,82.219,82.179,0.53968938]
[1773010233346,0.53954682,82.241,82.181,0.53968938]
[1773010233928,0.53954682,82.219,82.181,0.53968938]
[1773010234247,0.53954682,82.239,82.181,0.53968938]
[1773010235431,0.53954682,82.229,82.183,0.53968938]
[1773010236033,0.53954682,82.209,82.164,0.53968938]
[1773010237145,42.55940075,82.238,82.16,0.2]
[1773010237146,0.53954682,82.219,82.165,103.45037424]
[1773010237456,0.53954682,82.219,82.166,0.53968938]
[1773010237661,12.70218562,82.219,82.166,0.53968938]
[1773010237849,0.53954682,82.249,82.169,0.53968938]
[1773010238183,54.7,82.313,82.169,0.53968938]
[1773010238184,0.53954682,82.239,82.169,0.53968938]
[1773010239135,12.16130758,82.228,82.17,42.59462089]
[1773010239352,0.53954682,82.227,82.171,0.53968938]
[1773010240853,0.53954682,82.225,82.173,0.53968938]
[1773010241763,0.53954682,82.209,82.172,12.16959548]
[1773010242354,12.16158458,82.227,82.173,0.53968938]
[1773010242558,0.53954682,82.226,82.173,0.53968938]
[1773010242871,12.15912717,82.22,82.175,0.53968938]
[1773010243041,0.53954682,82.219,82.175,0.53968938]
[1773010243435,0.53954682,82.209,82.174,12.16929929]
[1773010243649,0.53954682,82.209,82.165,30.42649084]
[1773010243650,12.15912717,82.2,82.169,12.16996763]
[1773010243855,0.53954682,82.199,82.169,12.16996763]
[1773010244549,0.53954682,82.199,82.16,0.2]
[1773010244946,0.53954682,82.197,82.161,12.17122479]
[1773010245564,0.53954682,82.197,82.16,0.2]
[1773010245565,0.53954682,82.189,82.16,0.2]
[1773010247060,12.15912717,82.19,82.16,0.2]
[1773010247061,0.53954682,82.187,82.16,0.2]
[1773010247365,0.53954682,82.187,82.141,12.17418828]
[1773010247576,0.53954682,82.199,82.142,0.53968938]
[1773010248070,0.53954682,82.219,82.142,0.53968938]
[1773010248266,30.40705405,82.218,82.142,0.53968938]
[1773010248449,0.53954682,82.209,82.142,0.53968938]
[1773010249954,0.53954682,82.207,82.144,0.53968938]
[1773010251648,0.53954682,82.205,82.146,0.53968938]
[1773010252162,0.53954682,82.199,82.146,0.53968938]
[1773010253656,0.53954682,82.197,82.148,0.53968938]
[1773010253862,0.53954682,82.189,82.147,42.60654679]
[1773010254064,0.53954682,82.189,82.148,0.53968938]
[1773010254863,3.69383402,82.234,82.147,42.60654679]
[1773010254864,0.53954682,82.249,82.166,0.53968938]
[1773010255055,0.53954682,82.249,82.174,0.53968938]
[1773010255660,0.53954682,82.247,82.18,0.53968938]
[1773010257772,0.53954682,82.247,82.163,4.82477569]
[1773010257773,0.53954682,82.245,82.183,0.53968938]
[1773010258849,0.53954682,82.279,82.188,0.53968938]
[1773010259068,0.53954682,82.269,82.194,0.53968938]
[1773010259271,0.53954682,82.259,82.194,0.53968938]
[1773010259763,0.53954682,82.257,82.199,0.53968938]
[1773010260451,0.53954682,82.263,82.201,4.82477569]
[1773010260686,0.53954682,82.285,82.209,0.53968938]
[1773010260851,0.53954682,82.293,82.222,0.53968938]
[1773010261457,0.53954682,82.289,82.222,0.53968938]
[1773010261864,0.53954682,82.287,82.225,0.53968938]
[1773010262268,0.53954682,82.279,82.225,0.53968938]
[1773010262472,0.53954682,82.29,82.225,0.53968938]
[1773010262669,0.53954682,82.29,82.223,42.56716489]
[1773010262670,0.53954682,82.301,82.234,0.53968938]
[1773010262860,0.53954682,82.301,82.235,0.59388233]
[1773010263572,0.59049074,82.3,82.235,0.59388233]
[1773010263990,0.14216157,82.325,82.234,0.28432314]
[1773010263991,42.48965073,82.373,82.238,0.59388233]
[1773010264278,0.59049074,82.338,82.255,0.59388233]
[1773010264575,0.59049074,82.338,82.263,0.59388233]
[1773010265565,0.59049074,82.338,82.26,11.86299718]
[1773010265566,0.59049074,82.349,82.274,0.59388233]
[1773010265884,0.59049074,82.339,82.278,0.59388233]
[1773010266078,0.59049074,82.337,82.28,0.59388233]
[1773010266759,0.59049074,82.337,82.281,0.61070476]
[1773010266961,0.58002082,82.352,82.281,0.61070476]
[1773010267257,0.58002082,82.352,82.293,0.61070476]
[1773010268273,0.58002082,82.352,82.298,0.8950279]
[1773010268473,12.72152116,82.363,82.303,0.61070476]
[1773010268875,0.58002082,82.362,82.303,0.61070476]
[1773010270283,0.58002082,82.36,82.306,0.61070476]
[1773010271184,0.58002082,82.339,82.295,12.15140652]
[1773010271358,0.58002082,82.339,82.227,48.64523349]
[1773010271359,0.58002082,82.309,82.262,30.39052221]
[1773010271760,0.58002082,82.309,82.275,12.15436037]
[1773010272080,12.15188218,82.32,82.276,0.61070476]
[1773010272081,0.58002082,82.32,82.276,0.61070476]
[1773010272267,0.58002082,82.334,82.279,0.61070476]
[1773010273884,0.58002082,82.332,82.279,0.61070476]
[1773010275785,0.58002082,82.33,82.281,0.61070476]
[1773010278481,0.58002082,82.328,82.283,0.61070476]
[1773010278667,0.58002082,82.328,82.282,42.53664227]
[1773010279188,0.58002082,82.309,82.252,0.61070476]
[1773010279665,0.58002082,82.309,82.273,12.15451762]
[1773010279865,0.58002082,82.299,82.252,0.61070476]
[1773010280064,0.58002082,82.299,82.274,7.21975335]
[1773010280481,0.58002082,82.297,82.274,7.21975335]
[1773010280767,0.58002082,82.297,82.274,6.95984117]
[1773010281083,12.15188218,82.28,82.232,0.65313808]
[1773010281385,12.15188218,82.28,82.209,12.16411828]
[1773010281386,12.15188218,82.26,82.21,0.65313808]
[1773010281685,12.15188218,82.25,82.209,12.16411828]
[1773010282472,42.55370885,82.249,82.21,0.65313808]
[1773010282684,42.55370885,82.249,82.208,7.32559597]
[1773010282685,12.15188218,82.24,82.208,7.32559597]
[1773010283486,103.3447215,82.249,82.208,7.32559597]
[1773010283690,12.15188218,82.23,82.19,0.65313808]
[1773010284381,12.16115968,82.229,82.19,0.65313808]
[1773010284684,12.15188218,82.22,82.186,12.1673825]
[1773010285671,12.1626388,82.219,82.181,12.82140081]
[1773010285894,12.15188218,82.21,82.175,12.16910228]
[1773010286192,12.15188218,82.21,82.171,0.65313808]
[1773010287190,0.02182436,82.209,82.171,0.65313808]
[1773010287777,12.18594264,82.209,82.172,12.82273356]
[1773010287978,12.18594264,82.209,82.173,0.65313808]
[1773010288179,0.02481417,82.229,82.173,0.65313808]
[1773010288379,12.17669635,82.22,82.173,0.65313808]
[1773010288871,12.15188218,82.21,82.173,0.65313808]
[1773010289790,12.15188218,82.2,82.163,0.65313808]
[1773010289988,12.15188218,82.2,82.165,12.17048438]
[1773010290193,12.15188218,82.2,82.157,7.08767923]
[1773010290194,0.03068486,82.199,82.158,0.65313808]
[1773010290493,12.15188218,82.19,82.158,0.65313808]
[1773010290715,0.03068486,82.199,82.158,0.65313808]
[1773010291492,12.15188218,82.19,82.157,7.08767923]
[1773010291693,12.16707831,82.189,82.157,7.08767923]
[1773010293001,42.5847741,82.189,82.157,7.08767923]
[1773010293380,42.5847741,82.189,82.159,0.66992388]
[1773010293381,12.16707831,82.189,82.159,0.66992388]
[1773010293777,42.54853572,82.259,82.164,0.66992388]
[1773010293979,12.15022538,82.303,82.173,3.69383402]
[1773010294199,12.15188218,82.27,82.193,0.66992388]
[1773010295607,0.28432314,82.279,82.193,0.66992388]
[1773010295903,12.15188218,82.27,82.198,0.95424702]
[1773010296106,12.15188218,82.27,82.199,0.66992388]
[1773010297907,42.54336384,82.269,82.204,0.66992388]
[1773010298101,12.1524402,82.288,82.214,0.66992388]
[1773010299601,30.38027224,82.291,82.22,0.66992388]
[1773010302000,0.28432314,82.298,82.225,0.66992388]
[1773010302201,12.15081592,82.299,82.225,0.95424702]
[1773010302404,12.15081592,82.299,82.226,0.66992388]
[1773010303107,10.65081592,82.299,82.226,0.66992388]
[1773010303902,12.14933968,82.309,82.235,3.69383402]
[1773010304106,0.03719436,82.308,82.236,0.66992388]
[1773010305103,0.03719436,82.308,82.239,0.66992388]
[1773010305612,0.03962375,82.299,82.239,0.66992388]
[1773010305908,0.03962375,82.298,82.239,0.66992388]
[1773010309714,0.0490685,82.331,82.239,0.66992388]
[1773010309917,0.0490685,82.331,82.213,4.82477569]
[1773010309918,12.19486666,82.333,82.254,0.66992388]
[1773010310113,42.55936206,82.333,82.259,0.66992388]
[1773010310607,0.05135811,82.332,82.261,0.66992388]
[1773010310800,0.05135811,82.319,82.261,0.66992388]
[1773010311898,12.15188218,82.33,82.264,0.66992388]
[1773010312098,12.15188218,82.33,82.263,0.28432314]
[1773010312099,0.05586357,82.343,82.266,0.66992388]
[1773010312320,12.20774575,82.34,82.266,0.66992388]
[1773010312822,0.05586357,82.339,82.266,0.66992388]
[1773010314010,0.05807734,82.338,82.269,0.66992388]
[1773010314215,0.05807734,82.338,82.271,0.66992388]
[1773010314719,12.14432471,82.343,82.276,0.66992388]
[1773010315222,12.14255357,82.355,82.283,0.66992388]
[1773010316223,0.06455517,82.339,82.285,0.66992388]
[1773010317214,0.06667338,82.349,82.285,0.66992388]
[1773010317512,0.06667338,82.358,82.286,0.66992388]
[1773010318220,0.06667338,82.358,82.289,0.66992388]
[1773010319109,42.49687344,82.359,82.289,0.66992388]
[1773010319309,42.49687344,82.359,82.292,0.66992388]
[1773010319511,0.07082656,82.358,82.292,0.66992388]
[1773010320918,0.07082656,82.358,82.291,0.28432314]
[1773010320919,0.07082656,82.358,82.295,0.66992388]
[1773010321118,0.07487726,82.369,82.298,0.66992388]
[1773010321929,12.13901601,82.379,82.306,0.66992388]
[1773010322124,12.13901601,82.379,82.315,0.66992388]
[1773010322326,0.07687169,82.378,82.315,0.66992388]
[1773010322641,12.13901601,82.379,82.315,0.66992388]
[1773010323008,0.1,82.38,82.318,0.66992388]
[1773010323913,0.08079375,82.379,82.32,0.95424702]
[1773010324225,0.08079375,82.379,82.306,3.69383402]
[1773010324226,0.64922555,82.359,82.312,0.65909856]
[1773010324433,0.1,82.38,82.298,30.37722162]
[1773010324434,0.64922555,82.349,82.3,0.65909856]
[1773010324825,0.64922555,82.339,82.3,0.65909856]
[1773010325128,12.25188218,82.38,82.289,0.65909856]
[1773010325129,0.64922555,82.329,82.289,0.65909856]
[1773010325444,0.64922555,82.319,82.282,12.15332636]
[1773010326048,12.14801137,82.318,82.282,12.15332636]
[1773010326217,0.69358987,82.317,82.282,12.15332636]
[1773010327332,0.69358987,82.351,82.286,0.70940288]
[1773010327533,0.69358987,82.379,82.303,0.70940288]
[1773010327827,54.73365785,82.38,82.303,0.70940288]
[1773010327828,0.69358987,82.359,82.303,0.70940288]
[1773010328008,0.69358987,82.357,82.305,0.70940288]
[1773010328726,0.69358987,82.367,82.305,0.70940288]
[1773010328936,0.1,82.38,82.305,0.70940288]
[1773010328937,0.69358987,82.349,82.305,0.70940288]
[1773010329716,42.49326177,82.366,82.305,0.70940288]
[1773010329917,0.1,82.38,82.313,0.70940288]
[1773010330218,12.147531,82.36,82.315,0.70940288]
[1773010330417,0.69358987,82.369,82.315,0.70940288]
[1773010331838,0.69358987,82.379,82.315,0.70940288]
[1773010332141,12.83267165,82.379,82.317,3.69383402]
[1773010332315,0.1,82.38,82.32,0.70940288]
[1773010332516,0.1,82.38,82.321,0.70940288]
[1773010333329,12.13901601,82.379,82.321,0.70940288]
[1773010334743,12.83260588,82.379,82.326,0.70940288]
[1773010335246,0.69358987,82.378,82.326,0.70940288]
[1773010336927,12.13931072,82.377,82.328,0.70940288]
[1773010337438,0.1,82.38,82.328,0.85156445]
[1773010337646,0.1,82.38,82.331,0.70940288]
[1773010338368,12.13901601,82.379,82.331,0.70940288]
[1773010338521,0.1,82.38,82.331,0.70940288]
[1773010338929,0.1,82.38,82.333,0.70940288]
[1773010341153,0.1,82.38,82.335,0.70940288]
[1773010343355,0.1,82.38,82.337,0.70940288]
[1773010345353,0.1,82.38,82.338,42.5077121]
[1773010345656,0.1,82.38,82.339,0.70940288]
[1773010347755,0.69358987,82.396,82.342,0.70940288]
[1773010348466,0.69358987,82.393,82.342,0.70940288]
[1773010348958,0.69358987,82.411,82.344,0.70940288]
[1773010349254,12.147531,82.5,82.357,0.70940288]
[1773010349255,0.69358987,82.439,82.357,0.70940288]
[1773010349439,0.69358987,82.439,82.366,0.70940288]
[1773010349643,0.69358987,82.429,82.371,0.70940288]
[1773010349946,0.69358987,82.419,82.371,0.70940288]
[1773010350154,0.69358987,82.419,82.367,42.49274587]
[1773010350356,0.69358987,82.419,82.326,4.82477569]
[1773010350357,0.69358987,82.399,82.356,12.14240613]
[1773010350657,0.69358987,82.399,82.356,42.49842147]
[1773010350955,0.69358987,82.399,82.356,12.14240613]
[1773010351557,0.69358987,82.389,82.346,12.14388069]
[1773010351759,12.82980676,82.398,82.347,0.70940288]
[1773010352053,0.69358987,82.397,82.347,0.70940288]
[1773010353163,0.71034019,82.359,82.312,12.14889688]
[1773010353366,0.71034019,82.349,82.312,12.14889688]
[1773010353666,0.71034019,82.347,82.298,0.72108911]
[1773010354250,0.71034019,82.339,82.298,0.72108911]
[1773010354961,48.53627542,82.413,82.298,0.72108911]
[1773010354962,60.67611379,82.405,82.298,0.72108911]
[1773010355162,0.71034019,82.369,82.298,0.72108911]
[1773010355742,12.14063714,82.368,82.301,0.72108911]
[1773010355948,0.71034019,82.367,82.301,0.72108911]
[1773010357761,0.71034019,82.365,82.303,0.72108911]
[1773010359263,0.71034019,82.363,82.308,0.72108911]
[1773010360749,12.147531,82.36,82.308,0.72108911]
[1773010360948,0.71034019,82.359,82.308,0.72108911]
[1773010361968,0.71034019,82.357,82.31,0.72108911]
[1773010362557,0.71034019,82.357,82.28,0.28432314]
[1773010362558,0.71034019,82.357,82.282,0.72108911]
[1773010362760,12.14211127,82.358,82.234,0.74947638]
[1773010362761,12.147531,82.3,82.234,0.74947638]
[1773010362964,12.147531,82.3,82.176,25.75936441]
[1773010362965,12.147531,82.25,82.178,0.74947638]
[1773010363170,12.147531,82.23,82.178,0.74947638]
[1773010363674,12.147531,82.26,82.121,6.05224194]
[1773010363675,4.82477569,82.182,82.121,6.05224194]
[1773010363884,12.17596707,82.129,82.083,12.18279059]
[1773010364051,12.17596707,82.129,82.085,0.74947638]
[1773010364367,12.147531,82.17,82.089,0.74947638]
[1773010364571,12.147531,82.17,82.094,0.74947638]
[1773010364760,0.28432314,82.198,82.096,0.74947638]
[1773010364761,12.147531,82.16,82.096,0.74947638]
[1773010364948,12.147531,82.17,82.097,0.74947638]
[1773010365149,12.147531,82.17,82.098,0.74947638]
[1773010365670,12.147531,82.17,82.101,0.74947638]
[1773010365976,12.147531,82.16,82.103,0.74947638]
[1773010366155,12.147531,82.16,82.105,0.74947638]
[1773010366351,12.147531,82.16,82.106,0.74947638]
[1773010366547,12.147531,82.16,82.107,0.74947638]
[1773010366760,12.147531,82.16,82.108,0.74947638]
[1773010367068,0.28432314,82.169,82.109,0.74947638]